Cogmind - Beta 11.1 @@@ ROGUE MODE // 2022.05.14 @ 14:42:30 Player: Sara Result: Destroyed by S-10 Pest with Light Assault Rifle Performance ------------- Evolutions (0) 0 Regions Visited (4) 800 Robots Destroyed (5) 25 Value Destroyed (111) 111 Prototype IDs (0) 0 Alien Tech Used (0) 0 Bonus (0) 0 TOTAL SCORE: 936 Bonus ------- None Cogmind --------- Core Integrity 0/250 Matter 300/300 Energy 100/100 System Corruption 2% Temperature Cool (0) Movement Core (150) Ox2 Location -9/Mines Parts ------- > --- POWER (1) -------- (None) > --- PROPULSION (2) --- (None) > --- UTILITY (2) ------ (None) > --- WEAPON (2) ------- Bore Cannon > --- INVENTORY (5) ---- EM Pulse Gun Light Assault Rifle Peak State ------------ > --- POWER ------------ (None) > --- PROPULSION ------- (None) > --- UTILITY ---------- Weapon Shielding > --- WEAPON ----------- Bore Cannon Datajack > --- INVENTORY -------- EM Pulse Gun Light Assault Rifle [Rating: 7] Favorites ----------- Power None Propulsion None Utility Weapon Shielding Protection Weapon Shielding Weapon Bore Cannon Ballistic Gun Light Assault Rifle Ballistic Cannon Bore Cannon Special Melee Weapon Datajack Build | -11 -10 -10 -10 -9 ------- Run | Scr Mat Min Exi Min Slots Evolved . | . . . . . Power . | . . . . . Propulsion . | . . . . . Utility . | . . . . . Weapon . | . . . . . Parts Attached 6 | 2 . 4 . . Power . | . . . . . Engine . | . . . . . Core . | . . . . . Reactor . | . . . . . Propulsion . | . . . . . Treads . | . . . . . Leg . | . . . . . Wheel . | . . . . . Hover . | . . . . . Flight . | . . . . . Utility 1 | . . 1 . . Device . | . . . . . Storage . | . . . . . Processor . | . . . . . Hackware . | . . . . . Protection 1 | . . 1 . . Artifact . | . . . . . Weapon 5 | 2 . 3 . . Energy Gun . | . . . . . Energy Cannon . | . . . . . Ballistic Gun 3 | 2 . 1 . . Ballistic Cannon 1 | . . 1 . . Launcher . | . . . . . Special Weapon . | . . . . . Impact Weapon . | . . . . . Slashing Weapon . | . . . . . Piercing Weapon . | . . . . . Special Melee Weapon 1 | . . 1 . . Unidentified Prototypes . | . . . . . Parts Lost 4 | . . 4 . . Power . | . . . . . Propulsion . | . . . . . Utility 1 | . . 1 . . Weapon 3 | . . 3 . . Highest Loss Streak 2 | . . 2 . . To Critical Strikes . | . . . . . Average Slot Usage (%) 16 | . 28 17 14 14 Ballistic Gun 2 | . 28 1 . . Ballistic Cannon 12 | . . 12 14 14 Naked Turns 2 | . . 2 . . Heaviest Build 11 | 3 3 11 9 9 Greatest Support 3 | 3 3 3 3 3 Greatest Overweight (x) 3 | . . 3 2 2 Average Overweight (x) 1 | . . 1 2 2 Largest Inventory Capacity 5 | 5 5 5 5 5 Average Capacity 5 | 5 5 5 5 5 Most Carried 3 | 3 1 2 2 2 Average Carried 1 | 1 1 1 2 2 Final Capacity 5 | 5 5 5 5 5 Final Carried 2 | 1 1 2 2 2 Class Distribution -------------------- 100% | Mutant Dominant Class ---------------- Mutant | -10/Materials Mutant | -10/Mines Mutant | -10/Exiles Mutant | -9/Mines Resources | -11 -10 -10 -10 -9 ----------- Run | Scr Mat Min Exi Min Matter Collected 336 | 201 . 135 . . Remotely . | . . . . . Salvage Created 112 | . . 112 . . Parts 7 | . . 7 . . Haulers Intercepted . | . . . . . Recyclers Shooed 1 | . . 1 . . Parts Field Recycled . | . . . . . Retrieved Matter . | . . . . . Parts Self-Destructed . | . . . . . Prevented . | . . . . . Kills | -11 -10 -10 -10 -9 ------- Run | Scr Mat Min Exi Min Combat Hostiles Destroyed 5 | . . 5 . . Guns 3 | . . 3 . . Cannons 2 | . . 2 . . Classes Destroyed 2 | . . 2 . . Swarmer 3 | . . 3 . . Grunt 2 | . . 2 . . Best Kill Streak 2 | . . 2 . . Combat Bots Only 2 | . . 2 . . Max Kills in Single Turn 1 | . . 1 . . Gunslinging . | . . . . . Exploded . | . . . . . Melee . | . . . . . Uniques/NPCs Destroyed . | . . . . . Combat | -11 -10 -10 -10 -9 -------- Run | Scr Mat Min Exi Min Damage Taken 657 | . 113 431 . 113 Core 250 | . 30 148 . 72 Absorbed by Shields . | . . . . . Redirected to Shielding 20 | . . 20 . . Core Remaining (%) 100 | 100 . . . . Volleys Fired 28 | . . 28 . . Largest 2 | . . 2 . . Hottest 57 | . . 57 . . Shots Fired 29 | . . 29 . . Gun 17 | . . 17 . . Cannon 12 | . . 12 . . Launcher . | . . . . . Special . | . . . . . Kinetic 29 | . . 29 . . Thermal . | . . . . . Explosive . | . . . . . Electromagnetic . | . . . . . Robot Hit Streak 4 | . . 4 . . Robot Miss Streak 7 | . . 7 . . Penetration Max . | . . . . . Secondary Targets . | . . . . . Shots Hit Robots 14 | . . 14 . . Core Hits 7 | . . 7 . . Critical Kills 1 | . . 1 . . Critical Parts Destroyed 3 | . . 3 . . Critical Strikes 4 | . . 4 . . Destroy 4 | . . 4 . . Melee Attacks . | . . . . . Impact . | . . . . . Slashing . | . . . . . Piercing . | . . . . . Sneak Attacks . | . . . . . Combat Hostiles . | . . . . . Follow-up Attacks . | . . . . . Damage Inflicted 234 | . 5 228 . 1 Guns 67 | . . 67 . . Cannons 156 | . . 156 . . Explosions . | . . . . . Melee . | . . . . . Ramming 11 | . 5 5 . 1 Kinetic 223 | . . 223 . . Thermal . | . . . . . Explosive . | . . . . . Electromagnetic . | . . . . . Impact . | . . . . . Slashing . | . . . . . Piercing . | . . . . . Highest Corruption 2 | . . . . 2 Average Corruption 1 | . . . . 1 Corruption Purged . | . . . . . Corruption Blocked . | . . . . . Overload Shots . | . . . . . Overflow Damage 9 | . . 9 . . Projectiles 9 | . . 9 . . Explosions . | . . . . . Melee . | . . . . . Knockbacks 2 | . . 2 . . Impact . | . . . . . Kinetic 2 | . . 2 . . Secondary . | . . . . . Self-Inflicted Damage 4 | . 2 2 . . Shots . | . . . . . Rammed 6 | . 1 1 . 4 Targets Rammed 6 | . 1 1 . 4 Kicked . | . . . . . Crushed . | . . . . . Highest Temperature 126 | . . 126 . . Average Temperature 54 | . . 54 . . Received Heat Transfer 126 | . 30 96 . . Siege Activations . | . . . . . Robots Corrupted . | . . . . . Combat Hostiles . | . . . . . Parts Fried . | . . . . . Impact Corruptions . | . . . . . Robots Melted . | . . . . . Combat Hostiles . | . . . . . Parts Melted . | . . . . . Heat Transferred . | . . . . . Parts Sabotaged . | . . . . . Parts Stolen . | . . . . . Parts Stripped . | . . . . . Power Chain Reactions . | . . . . . Missiles Intercepted . | . . . . . Alert | -11 -10 -10 -10 -9 ------- Run | Scr Mat Min Exi Min Peak Influence 118 | . 60 118 . 15 Initial 23 | . . 23 . . Average 46 | . 18 52 . 14 Maximum Alert Level . | . . . . . Low Security (%) 100 | 100 100 100 . 100 Level 1 . | . . . . . Level 2 . | . . . . . Level 3 . | . . . . . Level 4 . | . . . . . Level 5 . | . . . . . High Security . | . . . . . Max Security . | . . . . . Squads Dispatched 1 | . 1 . . . Investigation . | . . . . . Extermination . | . . . . . Reinforcement 1 | . 1 . . . Assault . | . . . . . Garrison . | . . . . . Intercept . | . . . . . Searches Triggered . | . . . . . Construction Impeded . | . . . . . Haulers Reinforced . | . . . . . Active Scanning Responses . | . . . . . Cargo Convoy Interrupts . | . . . . . Stealth | -11 -10 -10 -10 -9 --------- Run | Scr Mat Min Exi Min Distress Signals 1 | . 1 . . . Communications Jammed . | . . . . . Distress Signals . | . . . . . Times Spotted 19 | . 11 5 . 3 Peak Tracking Total 7 | . 7 3 . 3 Tactical Retreats 1 | . 1 . . . Traps | -11 -10 -10 -10 -9 ------- Run | Scr Mat Min Exi Min Traps Triggered . | . . . . . Indirectly . | . . . . . Trap Hack Attempts . | . . . . . Triggered . | . . . . . Disarmed . | . . . . . Reprogrammed . | . . . . . Reused . | . . . . . Traps Extracted . | . . . . . Installed . | . . . . . Triggered . | . . . . . Machines | -11 -10 -10 -10 -9 ---------- Run | Scr Mat Min Exi Min Machines Disabled . | . . . . . Max in Single Turn . | . . . . . Machines Sabotaged . | . . . . . Garrisons Compromised . | . . . . . Overloaded Fab Kills . | . . . . . Hacking | -11 -10 -10 -10 -9 --------- Run | Scr Mat Min Exi Min Machines Accessed 8 | . 4 . 4 . Terminals 4 | . 4 . . . Fabricators . | . . . . . Repair Stations . | . . . . . Recycling Units . | . . . . . Scanalyzers . | . . . . . Garrison Access . | . . . . . Total Hacks 12 | . 8 . 4 . Successful 7 | . 3 . 4 . Failed 5 | . 5 . . . Catastrophic 1 | . 1 . . . Database Lockouts . | . . . . . Manual 6 | . 6 . . . Terminals 8 | . 8 . . . Fabricators . | . . . . . Repair Stations . | . . . . . Recycling Units . | . . . . . Scanalyzers . | . . . . . Garrison Access . | . . . . . Terminal Hacks 4 | . . . 4 . Record 4 | . . . 4 . Fabricator Hacks . | . . . . . Repair Station Hacks . | . . . . . Recycling Unit Hacks . | . . . . . Scanalyzer . | . . . . . Garrison Access Hacks . | . . . . . Unauthorized Hacks 3 | . 3 . . . Terminals 3 | . 3 . . . Assimilate 2 | . 2 . . . Botnet 1 | . 1 . . . Fabricators . | . . . . . Repair Stations . | . . . . . Recycling Units . | . . . . . Scanalyzers . | . . . . . Garrison Access . | . . . . . Data Cores Recovered . | . . . . . Used . | . . . . . Hacking Detections 4 | . 4 . . . Full Trace Events . | . . . . . Feedback Events . | . . . . . Feedback Blocked . | . . . . . Robot Schematics Acquired . | . . . . . Robots Built . | . . . . . Authchips . | . . . . . Time . | . . . . . Total Robot Build Rating . | . . . . . Part Schematics Acquired . | . . . . . Parts Built . | . . . . . Authchips . | . . . . . Time . | . . . . . Total Part Build Rating . | . . . . . Parts Repaired . | . . . . . Time . | . . . . . Parts Recycled . | . . . . . Recycled Matter . | . . . . . Retrieved Matter . | . . . . . Retrieved Components . | . . . . . Parts Scanalyzed . | . . . . . Part Schematics Acquired . | . . . . . Parts Damaged . | . . . . . Bothacking | -11 -10 -10 -10 -9 ------------ Run | Scr Mat Min Exi Min Used RIF Installer . | . . . . . Robots Hacked . | . . . . . Non-combat . | . . . . . Combat . | . . . . . Robot Hacks Applied . | . . . . . Relay Couplers Released . | . . . . . Fabnet Peak Effective % . | . . . . . Robots Rewired . | . . . . . Allies Hacked . | . . . . . Hacks Repelled . | . . . . . Allies | -11 -10 -10 -10 -9 -------- Run | Scr Mat Min Exi Min Total Allies 1 | . 1 . . . Largest Group . | . . . . . Highest-Rated Group . | . . . . . Highest-Rated Ally . | . . . . . Total Orders . | . . . . . Ally Attacks . | . . . . . Total Damage . | . . . . . Kills . | . . . . . Allies Corrupted . | . . . . . Allies Melted . | . . . . . Intel | -11 -10 -10 -10 -9 ------- Run | Scr Mat Min Exi Min Robot Analysis Total . | . . . . . Derelict Logs Recovered 1 | . . 1 . . Drone Launches . | . . . . . Drone Recoveries . | . . . . . Exploration | -11 -10 -10 -10 -9 ------------- Run | Scr Mat Min Exi Min Turns Passed 1431 | 31 70 662 652 16 Spaces Moved 1057 | 53 137 425 435 7 Core 1057 | 53 137 425 435 7 Treads . | . . . . . Legs . | . . . . . Wheels . | . . . . . Hover . | . . . . . Flight . | . . . . . Fastest Speed 50 | 50 50 50 150 150 Average Speed 127 | 50 50 139 150 150 Slowest Speed 200 | 50 50 200 150 150 Overloaded Moves . | . . . . . Propulsion Burnouts . | . . . . . Robots Hopped . | . . . . . Cave-ins Triggered . | . . . . . Exploration Rate (%) 45 | 4 40 85 90 8 Regions Visited 4 Branch Regions 3 Pre-discovered Areas . | . . . . . Known Exits Taken . | . . . . . Unknown Exits Taken 4 | 1 1 1 1 . Scrap Searched 1 | . . 1 . . Spaces Dug . | . . . . . Terrain Destroyed 8 | . . 8 . . Melee . | . . . . . Projectile 8 | . . 8 . . AOE . | . . . . . Terrain Rammed . | . . . . . Walls Destroyed . | . . . . . Machines Disabled . | . . . . . Actions | -11 -10 -10 -10 -9 --------- Run | Scr Mat Min Exi Min Total 1104 | 57 137 465 434 11 Wait 7 | . . 7 . . Move 1053 | 52 136 424 434 7 Hop . | . . . . . Pick Up 3 | 3 . . . . Fast Attach 4 | . . 4 . . Attach 2 | 2 . . . . Detach 1 | . . 1 . . Swap . | . . . . . Drop . | . . . . . Fire 28 | . . 28 . . Melee . | . . . . . Ram 6 | . 1 1 . 4 Kick . | . . . . . Crush . | . . . . . Escape Stasis . | . . . . . Rewire . | . . . . . Trap . | . . . . . Miscellaneous . | . . . . . Route ------- -11/Scrapyard -10/Materials (discovered 3 exits: [*Mat] / [*Min x2]) -10/Mines -10/Exiles -9/Mines History --------- Turn | Location | Event 6 | -11/Scrapyard | Discovered new exit (range 16) 32 | -11/Scrapyard | Entered Materials 67 | -10/Materials | Discovered new exit (range 16) 80 | -10/Materials | Discovered new exit (range 7) 94 | -10/Materials | Discovered new exit (range 11) 102 | -10/Materials | Entered Mines 141 | -10/Mines | Core integrity fell below 50% 161 | -10/Mines | Learned 8 Materials zone layouts 172 | -10/Mines | A weapon hastily lodged in a ceiling crevice suddenly fell to the ground 300 | -10/Mines | Build established: Mutant 758 | -10/Mines | Deemed a non-threat by the Exiles lab entrance 758 | -10/Mines | Discovered new exit (range 5) 764 | -10/Mines | Entered Exiles 764 | -10/Exiles | Found Exiles lab abandoned 1404 | -10/Exiles | Discovered new exit (range 10) 1416 | -10/Exiles | Entered Mines 1429 | -9/Mines | Core integrity fell below 20% 1432 | -9/Mines | Destroyed by S-10 Pest with Light Assault Rifle Last Messages --------------- To the spacelab! 00978_ Connecting with DEC's Terminal... >>Record "DEC-BYE" For the record, I voted to stay and build some amazing defenses, but HEX said this is a lab, not a battlefield. Anyway, you're too late, MAIN.C, Warlord sends his regards. 01003_ Connecting with EX-Prototypes Database... 01020_ Connecting with HEX's Terminal... >>Record "HEX-BYE" To anyone looking for us: Don't. 01404_ EXIT=FOUND LOCATION=UNKNOWN GOAL=ESCAPE 01427_ Slammed into S-10 Pest. 01427_ Destabilizing: System interference. 01427_ Bore Cannon temporarily disabled. 01428_ Slammed into S-10 Pest. 01428_ Destabilizing: System corrupted (+1). 01430_ Slammed into S-10 Pest. 01431_ Destabilizing: System corrupted (+1). Map ----- +----------------------------------------------------+ | ????????????????????????????????????????????????? | | ????????????????????????????????????????????????? | | ????????????????????????????????????????????????? | | ????????????????????????????????????????????????? | | ????????????????????????????????????????????????? | | ????????????????????????????????????????????????? | | ????????????????????????????????????????????????? | | ????????????????????????????????????????????????? | | ????????????????????????????????????????????????? | | ????????????????????????????????????????????????? | | ????????????????????????????????????????????????? | | ??????????????????????????##########????????????? | | ?????????????????????????? #????????????? | | ???????????????????????? #????????????? | | ????????????????????????"" """ """ #????????????? | | ????????????????????????"" """ """ #????????????? | | ???????????????????????""" """ """ #????????????? | | ?????????????????????# #????????????? | | ?????????????????????# """ """ #????????????? | | ?????????????????????# """ """ #????????????? | | ?????????????????????# """ """ #????????????? | | ?????????????????????# #????????????? | | ?????????????????????# """ """ """ #????????????? | | ?????????????????????# """ """ """ #????????????? | | ?????????????????????# """ """ """ #????????????? | | ?????????????????????# s@ s s #????????????? | | ?????????????????????###############????????????? | | ????????????????????????????????????????????????? | | ????????????????????????????????????????????????? | | ????????????????????????????????????????????????? | | ????????????????????????????????????????????????? | | ????????????????????????????????????????????????? | | ????????????????????????????????????????????????? | | ????????????????????????????????????????????????? | | | | | | | | | | | | | | | | | | | | | | | | | | | | | | | | | +----------------------------------------------------+ Best States ------------- Heat Dissipation 25 Energy Generation 5 Energy Capacity 100 Matter Stores 300 Matter Capacity 300 Sight Range 16 Terrain Scan Density 10 Weapon Shielding 33 Evasion (%) 50 Item Schematics ----------------- None Robot Schematics ------------------ None Fabricated ------------ Nothing Alien Tech Used ----------------- None Achievements -------------- None Challenges ------------ None Game ------ Seed ImprovedSpectralJammer Manual? 0 Play Time 00:06:22 Cumulative 103.5 hours Start 2022.05.14 @ 14:36:18 End 2022.05.14 @ 14:42:30 Sessions 1 Manual Loads 0 Difficulty Rogue Special Mode None Game No. 140 Rogue 140 Adventurer 0 Explorer 0 Win Type - Total 1 Types 1/0/0/0/0/0/0/0/0 Lore% 58 Gallery% 55 Achievement% 48 Wizard Run 0 Options --------- ASCII 0 Keyboard 0 Movement Numpad Keybinds 0 Fullscreen 1 Font 18/X11Bold Map View 76x50 Tactical HUD 1 Map Filters NONE Filters NONE Steam X RUN: 15f7481c-a35c-435f-964f-ea6eeeb01210